Cogmind - Beta 11.1 @@@ ROGUE MODE // 2022.04.23 @ 01:33:23 Player: Olga Result: Destroyed by S-27 Virus with Autogun Performance ------------- Evolutions (6) 3000 Regions Visited (11) 2200 Robots Destroyed (9) 45 Value Destroyed (397) 397 Prototype IDs (3) 60 Alien Tech Used (0) 0 Bonus (2487) 2487 TOTAL SCORE: 8189 Bonus ------- Pacifist 1987 Entered DSFs 500 Cogmind --------- Core Integrity 0/1150 Matter 300/300 Energy 99/100 System Corruption 4% Temperature Cool (0) Movement Core (50) Location -4/Upper Caves Parts ------- > --- POWER (2) -------- (None) > --- PROPULSION (6) --- (None) > --- UTILITY (9) ------ Improved Heat Sink Improved Signal Interpreter Hacking Suite > --- WEAPON (2) ------- (None) > --- INVENTORY (5) ---- Light Antimatter Reactor Myomer Leg Point Defense Array KE Penetrator Vibroblade Peak State ------------ > --- POWER ------------ Light Fission Core Antimatter Reactor > --- PROPULSION ------- Linear Gravjet Improved Gyrokinetic Inverter Improved Linear Gravjet > --- UTILITY ---------- Medium Storage Unit Improved Signal Interpreter Improved Terrain Scanner Seismic Detector Cloaking Device Hacking Suite Hacking Suite > --- WEAPON ----------- Vibroblade > --- INVENTORY -------- Impulse Thruster Medium Battery Powered Armor [Rating: 60] Favorites ----------- Power Light Fission Core Engine Light Ion Engine Power Core Light Fission Core Reactor Light Antimatter Reactor Propulsion Improved Gyrokinetic Inverter Leg Aluminum Leg Wheel Wheel Hover Unit Improved Gyrokinetic Inverter Flight Unit Flight Unit Utility Improved Signal Interpreter Device Weight Redist. System Storage Small Storage Unit Processor Improved Signal Interpreter Hackware Hacking Suite Protection Powered Armor Weapon Vibroblade Energy Gun Small Laser Ballistic Gun Light Assault Rifle Impact Weapon Impact Mace Slashing Weapon Vibroblade Build | -11 -10 -9 -9 -8 -7 -6 -5 -5 -4 -4 -4 ------- Run | Scr Mat Mat Min Mat Fac Fac Fac DSF Fac Upp Upp Slots Evolved 12 | . . 2 . 2 2 2 2 . 2 . . Power 1 | . . . . . . . . . 1 . . Propulsion 4 | . . 1 . 1 1 1 . . . . . Utility 7 | . . 1 . 1 1 1 2 . 1 . . Weapon . | . . . . . . . . . . . . Parts Attached 64 | . 4 . . 5 8 13 . 8 15 11 . Power 15 | . . . . 1 3 3 . 2 3 3 . Engine 4 | . . . . 1 3 . . . . . . Core 7 | . . . . . . 3 . 2 2 . . Reactor 4 | . . . . . . . . . 1 3 . Propulsion 19 | . 2 . . 1 2 2 . 4 3 5 . Treads . | . . . . . . . . . . . . Leg 1 | . . . . . . . . . . 1 . Wheel 3 | . . . . 1 2 . . . . . . Hover 9 | . 1 . . . . 2 . 2 3 1 . Flight 6 | . 1 . . . . . . 2 . 3 . Utility 24 | . 2 . . 3 2 5 . 1 8 3 . Device 10 | . . . . 1 1 4 . 1 2 1 . Storage 5 | . . . . 1 . . . . 3 1 . Processor 5 | . 2 . . 1 1 1 . . . . . Hackware 2 | . . . . . . . . . 2 . . Protection 2 | . . . . . . . . . 1 1 . Artifact . | . . . . . . . . . . . . Weapon 6 | . . . . . 1 3 . 1 1 . . Energy Gun 1 | . . . . . . 1 . . . . . Energy Cannon . | . . . . . . . . . . . . Ballistic Gun . | . . . . . . . . . . . . Ballistic Cannon . | . . . . . . . . . . . . Launcher . | . . . . . . . . . . . . Special Weapon . | . . . . . . . . . . . . Impact Weapon 1 | . . . . . . . . 1 . . . Slashing Weapon 4 | . . . . . 1 2 . . 1 . . Piercing Weapon . | . . . . . . . . . . . . Special Melee Weapon . | . . . . . . . . . . . . Unidentified Prototypes 3 | . . . . . 1 . . 1 1 . . Parts Lost 22 | . . . . . 3 . . 4 3 7 5 Power 5 | . . . . . 1 . . . 2 1 1 Propulsion 10 | . . . . . 1 . . 2 1 2 4 Utility 6 | . . . . . . . . 2 . 4 . Weapon 1 | . . . . . 1 . . . . . . Highest Loss Streak 9 | . . . . . 1 . . 2 2 9 5 To Critical Strikes . | . . . . . . . . . . . . Average Slot Usage (%) 46 | . 68 66 66 66 56 56 70 47 43 27 34 Engine 2 | . 14 11 11 9 5 . . . . . . Core 2 | . . . . . . 5 5 3 6 . . Wheel 1 | . . . . . 1 6 5 . . . . Hover 6 | . 12 11 11 9 3 5 11 5 9 5 6 Flight 2 | . 8 11 11 9 2 . . 3 . 1 7 Device 6 | . . . . 7 7 10 17 16 9 . 5 Storage 2 | . 1 . . 5 7 6 5 2 1 . . Processor 9 | . 8 22 22 18 20 14 11 6 5 5 5 Hackware 2 | . . . . . . . . . 6 5 5 Energy Gun 2 | . 14 11 11 9 4 2 5 . . . . Slashing Weapon 2 | . . . . . 1 2 5 3 2 4 . Naked Turns . | . . . . . . . . . . . . Heaviest Build 32 | 10 10 4 4 9 12 24 24 24 32 30 13 Greatest Support 31 | 20 20 4 4 10 16 24 24 24 31 23 15 Greatest Overweight (x) 4 | . . . . . 1 1 . 4 1 2 . Average Overweight (x) . | . . . . . . . . . . . . Largest Inventory Capacity 10 | 8 8 5 5 8 8 8 8 8 10 5 5 Average Capacity 6 | 8 5 5 5 6 8 8 8 6 6 5 5 Most Carried 7 | 6 7 5 5 5 5 6 4 6 5 5 5 Average Carried 4 | 6 5 5 5 3 2 3 4 4 4 4 5 Final Capacity 8 | 8 5 5 5 8 8 8 8 5 5 5 5 Final Carried 6 | 6 5 5 5 2 4 4 4 5 5 5 5 Class Distribution -------------------- 91% | Mutant 8% | Hacker-Mutant Dominant Class ---------------- Mutant | -10/Materials Mutant | -9/Materials Mutant | -9/Mines Mutant | -8/Materials Mutant | -7/Factory Mutant | -6/Factory Mutant | -5/Factory Mutant | -5/DSF Mutant | -4/Factory Mutant | -4/Upper Caves Mutant | -4/Upper Caves Resources | -11 -10 -9 -9 -8 -7 -6 -5 -5 -4 -4 -4 ----------- Run | Scr Mat Mat Min Mat Fac Fac Fac DSF Fac Upp Upp Matter Collected 736 | 200 . . . . . . . 62 167 307 . Remotely . | . . . . . . . . . . . . Salvage Created 690 | . . . . . . . . 62 167 461 . Parts 27 | . . . . . . . . 4 9 14 . Haulers Intercepted . | . . . . . . . . . . . . Recyclers Shooed . | . . . . . . . . . . . . Parts Field Recycled . | . . . . . . . . . . . . Retrieved Matter . | . . . . . . . . . . . . Parts Self-Destructed 9 | . . . . . . . . . . 9 . Prevented . | . . . . . . . . . . . . Kills | -11 -10 -9 -9 -8 -7 -6 -5 -5 -4 -4 -4 ------- Run | Scr Mat Mat Min Mat Fac Fac Fac DSF Fac Upp Upp Combat Hostiles Destroyed 6 | . . . . . . . . 2 . 4 . Melee 6 | . . . . . . . . 2 . 4 . Classes Destroyed 6 | . . . . . . . . 1 3 2 . Tunneler 1 | . . . . . . . . . 1 . . Recycler 1 | . . . . . . . . . 1 . . Operator 1 | . . . . . . . . . 1 . . Cutter 2 | . . . . . . . . 2 . . . Hunter 2 | . . . . . . . . . . 2 . Programmer 2 | . . . . . . . . . . 2 . Packrat 2 | . . . . . . . . . . 2 . Best Kill Streak 2 | . . . . . . . . 2 1 2 . Combat Bots Only 2 | . . . . . . . . 2 . 2 . Max Kills in Single Turn 1 | . . . . . . . . 1 1 1 . Gunslinging . | . . . . . . . . . . . . Exploded . | . . . . . . . . . . . . Melee 1 | . . . . . . . . 1 . 1 . Uniques/NPCs Destroyed . | . . . . . . . . . . . . Combat | -11 -10 -9 -9 -8 -7 -6 -5 -5 -4 -4 -4 -------- Run | Scr Mat Mat Min Mat Fac Fac Fac DSF Fac Upp Upp Damage Taken 3325 | . 89 13 . 44 250 118 . 697 321 1407 386 Core 1610 | . 52 . . 30 22 61 . 290 158 728 269 Absorbed by Shields . | . . . . . . . . . . . . Core Remaining (%) 90 | 100 79 . 100 94 96 92 . 71 . . . Volleys Fired . | . . . . . . . . . . . . Largest . | . . . . . . . . . . . . Hottest . | . . . . . . . . . . . . Shots Fired . | . . . . . . . . . . . . Gun . | . . . . . . . . . . . . Cannon . | . . . . . . . . . . . . Launcher . | . . . . . . . . . . . . Special . | . . . . . . . . . . . . Kinetic . | . . . . . . . . . . . . Thermal . | . . . . . . . . . . . . Explosive . | . . . . . . . . . . . . Electromagnetic . | . . . . . . . . . . . . Robot Hit Streak . | . . . . . . . . . . . . Robot Miss Streak . | . . . . . . . . . . . . Penetration Max . | . . . . . . . . . . . . Secondary Targets . | . . . . . . . . . . . . Shots Hit Robots 34 | . . . . . . 1 . 4 7 22 . Core Hits 11 | . . . . . . . . 2 2 7 . Critical Kills . | . . . . . . . . . . . . Critical Parts Destroyed . | . . . . . . . . . . . . Critical Strikes 6 | . . . . . . . . . 3 3 . Sever 6 | . . . . . . . . . 3 3 . Melee Attacks 52 | . . . . . . 1 . 8 10 33 . Impact . | . . . . . . . . . . . . Slashing 52 | . . . . . . 1 . 8 10 33 . Piercing . | . . . . . . . . . . . . Sneak Attacks 5 | . . . . . . . . . 3 2 . Combat Hostiles . | . . . . . . . . . . . . Follow-up Attacks . | . . . . . . . . . . . . Damage Inflicted 2089 | . . . . . . 41 . 170 592 1286 . Guns . | . . . . . . . . . . . . Cannons . | . . . . . . . . . . . . Explosions . | . . . . . . . . . . . . Melee 2057 | . . . . . . 41 . 152 578 1286 . Ramming 32 | . . . . . . . . 18 14 . . Kinetic . | . . . . . . . . . . . . Thermal . | . . . . . . . . . . . . Explosive . | . . . . . . . . . . . . Electromagnetic . | . . . . . . . . . . . . Impact . | . . . . . . . . . . . . Slashing 2057 | . . . . . . 41 . 152 578 1286 . Piercing . | . . . . . . . . . . . . Highest Corruption 4 | . . . . . 1 . . . . 4 4 Average Corruption 2 | . . . . . 1 . . . . 2 4 Corruption Purged . | . . . . . . . . . . . . Corruption Blocked . | . . . . . . . . . . . . Effects 3 | . . . . . . . . . . 1 2 Matter Fused 1 | . . . . . . . . . . . 1 Heat Flow Errors 1 | . . . . . . . . . . 1 . Data Loss (minor) 1 | . . . . . . . . . . . 1 Overload Shots . | . . . . . . . . . . . . Overflow Damage 417 | . . . . . . 6 . . 116 295 . Projectiles . | . . . . . . . . . . . . Explosions . | . . . . . . . . . . . . Melee 417 | . . . . . . 6 . . 116 295 . Knockbacks . | . . . . . . . . . . . . Impact . | . . . . . . . . . . . . Kinetic . | . . . . . . . . . . . . Secondary . | . . . . . . . . . . . . Self-Inflicted Damage 14 | . . . . . . . . 7 7 . . Shots . | . . . . . . . . . . . . Rammed 6 | . . . . . . . . 4 2 . . Targets Rammed 6 | . . . . . . . . 4 2 . . Kicked . | . . . . . . . . . . . . Crushed . | . . . . . . . . . . . . Highest Temperature 101 | . . . . 5 . . . . 4 101 . Average Temperature 30 | . . . . 5 . . . . 2 66 . Received Heat Transfer 165 | . 48 . . 27 12 51 . 18 9 . . Siege Activations . | . . . . . . . . . . . . Robots Corrupted . | . . . . . . . . . . . . Combat Hostiles . | . . . . . . . . . . . . Parts Fried . | . . . . . . . . . . . . Impact Corruptions . | . . . . . . . . . . . . Robots Melted . | . . . . . . . . . . . . Combat Hostiles . | . . . . . . . . . . . . Parts Melted . | . . . . . . . . . . . . Heat Transferred . | . . . . . . . . . . . . Parts Sabotaged . | . . . . . . . . . . . . Parts Stolen . | . . . . . . . . . . . . Parts Stripped . | . . . . . . . . . . . . Power Chain Reactions . | . . . . . . . . . . . . Missiles Intercepted . | . . . . . . . . . . . . Alert | -11 -10 -9 -9 -8 -7 -6 -5 -5 -4 -4 -4 ------- Run | Scr Mat Mat Min Mat Fac Fac Fac DSF Fac Upp Upp Peak Influence 358 | . 34 29 10 30 58 358 175 171 87 . . Initial 175 | . . 14 10 3 13 28 175 126 79 . . Average 77 | . 14 15 10 9 26 150 175 148 54 . . Maximum Alert Level 1 | . . . . . . 1 . . . . . Low Security (%) 92 | 100 100 100 100 100 100 68 100 100 100 . . Level 1 7 | . . . . . . 31 . . . . . Level 2 . | . . . . . . . . . . . . Level 3 . | . . . . . . . . . . . . Level 4 . | . . . . . . . . . . . . Level 5 . | . . . . . . . . . . . . High Security . | . . . . . . . . . . . . Max Security . | . . . . . . . . . . . . Squads Dispatched 5 | . 1 . . . . . . 2 2 . . Investigation 1 | . 1 . . . . . . . . . . Extermination 1 | . . . . . . . . . 1 . . Reinforcement 3 | . . . . . . . . 2 1 . . Assault . | . . . . . . . . . . . . Garrison . | . . . . . . . . . . . . Intercept . | . . . . . . . . . . . . Searches Triggered . | . . . . . . . . . . . . Construction Impeded . | . . . . . . . . . . . . Haulers Reinforced . | . . . . . . . . . . . . Active Scanning Responses . | . . . . . . . . . . . . Cargo Convoy Interrupts . | . . . . . . . . . . . . Stealth | -11 -10 -9 -9 -8 -7 -6 -5 -5 -4 -4 -4 --------- Run | Scr Mat Mat Min Mat Fac Fac Fac DSF Fac Upp Upp Distress Signals 2 | . 1 1 . . . . . . . . . Communications Jammed . | . . . . . . . . . . . . Distress Signals . | . . . . . . . . . . . . Times Spotted 63 | . 10 2 . 2 3 15 . 11 5 7 8 Peak Tracking Total 9 | . 8 3 . 2 3 9 . 9 3 4 8 Tactical Retreats 11 | . 1 . . . 1 6 . 1 1 1 . Traps | -11 -10 -9 -9 -8 -7 -6 -5 -5 -4 -4 -4 ------- Run | Scr Mat Mat Min Mat Fac Fac Fac DSF Fac Upp Upp Traps Triggered 5 | . . . . . 2 . . 1 2 . . Indirectly . | . . . . . . . . . . . . Trap Hack Attempts . | . . . . . . . . . . . . Triggered . | . . . . . . . . . . . . Disarmed . | . . . . . . . . . . . . Reprogrammed . | . . . . . . . . . . . . Reused . | . . . . . . . . . . . . Traps Extracted . | . . . . . . . . . . . . Installed . | . . . . . . . . . . . . Triggered . | . . . . . . . . . . . . Machines | -11 -10 -9 -9 -8 -7 -6 -5 -5 -4 -4 -4 ---------- Run | Scr Mat Mat Min Mat Fac Fac Fac DSF Fac Upp Upp Machines Disabled . | . . . . . . . . . . . . Max in Single Turn . | . . . . . . . . . . . . Garrison Access 1 | . . . . . . . . . 1 . . Machines Sabotaged . | . . . . . . . . . . . . Garrisons Compromised . | . . . . . . . . . . . . Overloaded Fab Kills . | . . . . . . . . . . . . Hacking | -11 -10 -9 -9 -8 -7 -6 -5 -5 -4 -4 -4 --------- Run | Scr Mat Mat Min Mat Fac Fac Fac DSF Fac Upp Upp Machines Accessed 11 | . 2 . . 1 2 . 1 . 5 . . Terminals 8 | . 2 . . 1 1 . 1 . 3 . . Fabricators . | . . . . . . . . . . . . Repair Stations . | . . . . . . . . . . . . Recycling Units . | . . . . . . . . . . . . Scanalyzers . | . . . . . . . . . . . . Garrison Access 3 | . . . . . 1 . . . 2 . . Total Hacks 21 | . 2 . . 2 4 . 2 . 11 . . Successful 12 | . 2 . . 1 1 . 1 . 7 . . Failed 9 | . . . . 1 3 . 1 . 4 . . Catastrophic 2 | . . . . . . . . . 2 . . Database Lockouts . | . . . . . . . . . . . . Manual 4 | . 1 . . . . . . . 3 . . Terminals 14 | . 2 . . 2 1 . 2 . 7 . . Fabricators . | . . . . . . . . . . . . Repair Stations . | . . . . . . . . . . . . Recycling Units . | . . . . . . . . . . . . Scanalyzers . | . . . . . . . . . . . . Garrison Access 7 | . . . . . 3 . . . 4 . . Terminal Hacks 10 | . 1 . . 1 1 . 1 . 6 . . Record 3 | . . . . . . . . . 3 . . Open DSF 2 | . . . . . 1 . 1 . . . . Emergency Access Points 1 | . 1 . . . . . . . . . . Unreport Threat 2 | . . . . 1 . . . . 1 . . Registered Components 1 | . . . . . . . . . 1 . . Zone Layout 1 | . . . . . . . . . 1 . . Fabricator Hacks . | . . . . . . . . . . . . Repair Station Hacks . | . . . . . . . . . . . . Recycling Unit Hacks . | . . . . . . . . . . . . Scanalyzer . | . . . . . . . . . . . . Garrison Access Hacks 1 | . . . . . . . . . 1 . . Seal Access 1 | . . . . . . . . . 1 . . Unauthorized Hacks 1 | . 1 . . . . . . . . . . Terminals 1 | . 1 . . . . . . . . . . Sabotage 1 | . 1 . . . . . . . . . . Fabricators . | . . . . . . . . . . . . Repair Stations . | . . . . . . . . . . . . Recycling Units . | . . . . . . . . . . . . Scanalyzers . | . . . . . . . . . . . . Garrison Access . | . . . . . . . . . . . . Data Cores Recovered . | . . . . . . . . . . . . Used . | . . . . . . . . . . . . Hacking Detections 5 | . 1 . . 1 1 . . . 2 . . Full Trace Events . | . . . . . . . . . . . . Feedback Events . | . . . . . . . . . . . . Feedback Blocked . | . . . . . . . . . . . . Robot Schematics Acquired . | . . . . . . . . . . . . Robots Built . | . . . . . . . . . . . . Authchips . | . . . . . . . . . . . . Time . | . . . . . . . . . . . . Total Robot Build Rating . | . . . . . . . . . . . . Part Schematics Acquired . | . . . . . . . . . . . . Parts Built . | . . . . . . . . . . . . Authchips . | . . . . . . . . . . . . Time . | . . . . . . . . . . . . Total Part Build Rating . | . . . . . . . . . . . . Parts Repaired . | . . . . . . . . . . . . Time . | . . . . . . . . . . . . Parts Recycled . | . . . . . . . . . . . . Recycled Matter . | . . . . . . . . . . . . Retrieved Matter . | . . . . . . . . . . . . Retrieved Components . | . . . . . . . . . . . . Parts Scanalyzed . | . . . . . . . . . . . . Part Schematics Acquired . | . . . . . . . . . . . . Parts Damaged . | . . . . . . . . . . . . Bothacking | -11 -10 -9 -9 -8 -7 -6 -5 -5 -4 -4 -4 ------------ Run | Scr Mat Mat Min Mat Fac Fac Fac DSF Fac Upp Upp Used RIF Installer . | . . . . . . . . . . . . Robots Hacked . | . . . . . . . . . . . . Non-combat . | . . . . . . . . . . . . Combat . | . . . . . . . . . . . . Robot Hacks Applied . | . . . . . . . . . . . . Relay Couplers Released . | . . . . . . . . . . . . Fabnet Peak Effective % . | . . . . . . . . . . . . Robots Rewired . | . . . . . . . . . . . . Allies Hacked . | . . . . . . . . . . . . Hacks Repelled . | . . . . . . . . . . . . Allies | -11 -10 -9 -9 -8 -7 -6 -5 -5 -4 -4 -4 -------- Run | Scr Mat Mat Min Mat Fac Fac Fac DSF Fac Upp Upp Total Allies . | . . . . . . . . . . . . Largest Group . | . . . . . . . . . . . . Highest-Rated Group . | . . . . . . . . . . . . Highest-Rated Ally . | . . . . . . . . . . . . Total Orders . | . . . . . . . . . . . . Ally Attacks . | . . . . . . . . . . . . Total Damage . | . . . . . . . . . . . . Kills . | . . . . . . . . . . . . Allies Corrupted . | . . . . . . . . . . . . Allies Melted . | . . . . . . . . . . . . Intel | -11 -10 -9 -9 -8 -7 -6 -5 -5 -4 -4 -4 ------- Run | Scr Mat Mat Min Mat Fac Fac Fac DSF Fac Upp Upp Robot Analysis Total . | . . . . . . . . . . . . Derelict Logs Recovered . | . . . . . . . . . . . . Drone Launches . | . . . . . . . . . . . . Drone Recoveries . | . . . . . . . . . . . . Exploration | -11 -10 -9 -9 -8 -7 -6 -5 -5 -4 -4 -4 ------------- Run | Scr Mat Mat Min Mat Fac Fac Fac DSF Fac Upp Upp Turns Passed 1639 | 5 99 37 10 53 200 303 2 140 353 375 62 Spaces Moved 2401 | 5 187 93 25 109 345 353 3 160 645 340 136 Core 201 | . . . . . 151 36 . . . . 14 Treads . | . . . . . . . . . . . . Legs 10 | 5 5 . . . . . . . . . . Wheels 139 | . . . . . 8 131 . . . . . Hover 1211 | . 45 . . . 17 186 3 116 645 199 . Flight 840 | . 137 93 25 109 169 . . 44 . 141 122 Fastest Speed 27 | 120 40 40 40 40 40 50 61 27 40 40 44 Average Speed 53 | 120 46 40 40 40 52 66 61 50 43 77 45 Slowest Speed 190 | 120 120 40 40 40 100 95 61 190 120 150 55 Overloaded Moves . | . . . . . . . . . . . . Propulsion Burnouts . | . . . . . . . . . . . . Robots Hopped 7 | . 3 . . 2 . . . . . . 2 Cave-ins Triggered . | . . . . . . . . . . . . Exploration Rate (%) 25 | 2 36 13 6 21 11 10 . 88 13 48 33 Regions Visited 11 Branch Regions 3 Pre-discovered Areas . | . . . . . . . . . . . . Known Exits Taken 9 | . 1 1 1 1 1 1 1 . 1 1 . Unknown Exits Taken 1 | 1 . . . . . . . . . . . Scrap Searched 1 | . . . . . . . . . . 1 . Spaces Dug . | . . . . . . . . . . . . Terrain Destroyed . | . . . . . . . . . . . . Melee . | . . . . . . . . . . . . Projectile . | . . . . . . . . . . . . AOE . | . . . . . . . . . . . . Terrain Rammed . | . . . . . . . . . . . . Walls Destroyed . | . . . . . . . . . . . . Machines Disabled . | . . . . . . . . . . . . Actions | -11 -10 -9 -9 -8 -7 -6 -5 -5 -4 -4 -4 --------- Run | Scr Mat Mat Min Mat Fac Fac Fac DSF Fac Upp Upp Total 2658 | 4 196 92 24 115 362 416 2 204 702 407 134 Wait 77 | . . . . . 1 42 . 14 15 5 . Move 2377 | 4 180 92 24 104 344 352 2 159 644 339 133 Hop 6 | . 3 . . 2 . . . . . . 1 Pick Up 30 | . 3 . . 1 3 4 . 2 10 7 . Fast Attach 24 | . 3 . . 1 3 3 . 6 5 3 . Attach 30 | . 1 . . 2 2 8 . . 9 8 . Detach 15 | . . . . . 3 4 . 2 2 4 . Swap 10 | . . . . 2 3 2 . 2 1 . . Drop 31 | . 6 . . 3 3 . . 7 4 8 . Fire . | . . . . . . . . . . . . Melee 52 | . . . . . . 1 . 8 10 33 . Ram 6 | . . . . . . . . 4 2 . . Kick . | . . . . . . . . . . . . Crush . | . . . . . . . . . . . . Escape Stasis . | . . . . . . . . . . . . Rewire . | . . . . . . . . . . . . Trap . | . . . . . . . . . . . . Miscellaneous . | . . . . . . . . . . . . Route ------- -11/Scrapyard -10/Materials -9/Materials -9/Mines -8/Materials -7/Factory (discovered 2 exits: *Fac / *Low) -6/Factory -5/Factory -5/DSF -4/Factory -4/Upper Caves -4/Upper Caves History --------- Turn | Location | Event 1 | -11/Scrapyard | Discovered new exit (range 3) 6 | -11/Scrapyard | Entered Materials 58 | -10/Materials | Discovered new exit (range 10) 104 | -10/Materials | Identified exit to Materials 105 | -10/Materials | Entered another Materials area 105 | -9/Materials | Evolved 2 slots: Propulsion x1, Utility x1 139 | -9/Materials | Discovered new exit (range 10) 142 | -9/Materials | Identified exit to Mines 142 | -9/Materials | Entered Mines 142 | -9/Mines | Discovered new exit (range 8) 145 | -9/Mines | Identified exit to Materials 152 | -9/Mines | Entered Materials 152 | -8/Materials | Evolved 2 slots: Propulsion x1, Utility x1 199 | -8/Materials | Discovered new exit (range 16) 204 | -8/Materials | Identified exit to Factory 205 | -8/Materials | Entered Factory 205 | -7/Factory | Evolved 2 slots: Propulsion x1, Utility x1 304 | -7/Factory | Build established: Mutant 387 | -7/Factory | Discovered new exit (range 8) 390 | -7/Factory | Identified exit to Lower Caves 394 | -7/Factory | Discovered new exit (range 16) 405 | -7/Factory | Identified exit to Factory 405 | -7/Factory | Entered another Factory area 405 | -6/Factory | Evolved 2 slots: Propulsion x1, Utility x1 700 | -6/Factory | Discovered new exit (range 9) 707 | -6/Factory | Identified exit to Factory 708 | -6/Factory | Entered another Factory area 708 | -5/Factory | Evolved 2 slots: Utility x2 710 | -5/Factory | Identified exit to DSF 710 | -5/Factory | Entered DSF 745 | -5/DSF | Additional patrols routed to DSF 841 | -5/DSF | Discovered new exit (range 16) 850 | -5/DSF | Identified exit to Factory 850 | -5/DSF | Entered Factory 850 | -4/Factory | Evolved 2 slots: Power x1, Utility x1 940 | -4/Factory | Found Prototype Slashing Weapon 1001 | -4/Factory | Identified Vibroblade 1051 | -4/Factory | Found Powered Armor 1079 | -4/Factory | Spotted B-86 Titan 1167 | -4/Factory | Discovered new exit (range 10) 1202 | -4/Factory | Identified exit to Upper Caves 1203 | -4/Factory | Entered Upper Caves 1253 | -4/Upper Caves | Core integrity fell below 50% 1273 | -4/Upper Caves | Lost 9 parts (3p2n4u) 1573 | -4/Upper Caves | Discovered new exit (range 10) 1577 | -4/Upper Caves | Identified exit to Upper Caves 1577 | -4/Upper Caves | Spotted B-86 Titan 1578 | -4/Upper Caves | Entered another Upper Caves area 1585 | -4/Upper Caves | Encountered a Warlord checkpoint 1633 | -4/Upper Caves | Core integrity fell below 20% 1640 | -4/Upper Caves | Destroyed by S-27 Virus with Autogun Last Messages --------------- 01562_ Acquired Point Defense Array. 01564_ Slug penetrates Wall. 01570_ Acquired 10 matter. 01573_ EXIT=FOUND 01577_ EXIT=IDENTIFIED: UPPER CAVES LOCATION=UPPER CAVES GOAL=ESCAPE 01585_ ID-OUE(M): "Unaware activity is slow around here lately. Bring on the action!" 01602_ System corrupted: Matter fused (-7). 01617_ System corrupted: Component data lost. 01617_ C-30 ARC bursts open, deploying its payload. 01617_ S-27 Virus unfolds itself. 01619_ Imp. Gyrokinetic Inverter destroyed. 01621_ Antigrav System destroyed. 01621_ Lgt. Antimatter Reactor destroyed. 01627_ Impulse Thruster destroyed. 01628_ M-30 Cleanser reprogrammed Dirty Bomb Trap. 01630_ M-30 Cleanser extracted Dirty Bomb Trap. 01633_ Mak. Flight Unit destroyed. Map ----- +----------------------------------------------------+ | ?????????????????????????????????????????????????? | | ?????????????????????????????????????????????????? | | ?????????????????????????????????????????????????? | | ?????????????????????????????????????????????????? | | ?????????????????????????????????????????????????? | | ?????????????????????????????????????????????????? | | ?????????????????????????????????????????????????? | | ?????????????????????????????????????????????????? | | ?????????????????????????????????????????????????? | | ?????????????????????????????????????????????????? | | ?????????????????????????????????????????????????? | | ??????????????????????????????????????????? ?????? | | ??????????????????????????????????????????? #????? | | ?????????????????????????###??????????????# #???? | | ???????????????# ????##??# ##?????????????# #???? | | ???????????????# ???# #?# #?????????????# #??## | | ???????????????# #?## ?# #?????????????# #?? | | ???????????????# ## ?# #?????????????# #?? | | ???????????????# ## #????????????## #?? | | ???????????????# ##??????????## ### # | | ????????????????# #????####### ## # | | ????????????????# ssss ###### # | | ???????????????????# # | | ??????????????????## #? | | ?????????????????## ####### ## | | ?????????????# @ ##????## # | | ?????????????# ###????## | | ?????????????# ???????# ### | | ????????????# ???????# ## ##### | | ????????????# ???????# ######?## | | ????????????# ???????# #??????# | | ????????????## #####??????# ##?????## | | ?????????????## ????????????# ##???????# ### | | ??????????????##?????????????###????????# ##?? | | ????????????????????????????????????????# ### # | | ????????????????????????????????????????## ##?# | | ?????????????????????????????????????????###???# | | ??????????????????????????????????????????????# | | ????????????????????????????????????????????# # | | ????????????????????????????????????????????# ? | | ????????????????????????????????????????????## ?? | | ?????????????????????????????????????????????# ??? | | ?????????????????????????????????????????????#???? | | ?????????????????????????????????????????????????? | | ?????????????????????????????????????????????????? | | ?????????????????????????????????????????????????? | | ?????????????????????????????????????????????????? | | ?????????????????????????????????????????????????? | | ?????????????????????????????????????????????????? | | ?????????????????????????????????????????????????? | +----------------------------------------------------+ Best States ------------- Heat Dissipation 57 Energy Generation 37 Energy Capacity 475 Matter Stores 300 Matter Capacity 300 Sight Range 16 Terrain Scan Range 20 Terrain Scan Density 285 ECM Strength 2 Cloak Strength 2 Additional Mass Support 6 Armor Coverage 400 Evasion (%) 64 Offensive Hacking 20 Item Schematics ----------------- None Robot Schematics ------------------ None Fabricated ------------ Nothing Alien Tech Used ----------------- None Achievements -------------- None Challenges ------------ None Game ------ Seed SubatomicThermalSlayer Manual? 0 Play Time 00:39:47 Cumulative 91.6 hours Start 2022.04.23 @ 00:50:27 End 2022.04.23 @ 01:33:23 Sessions 1 Manual Loads 0 Difficulty Rogue Special Mode None Game No. 119 Rogue 119 Adventurer 0 Explorer 0 Win Type - Total 0 Types 0/0/0/0/0/0/0/0/0 Lore% 53 Gallery% 48 Achievement% 42 Wizard Run 0 Options --------- ASCII 1 Keyboard 0 Movement Vi Keybinds 0 Fullscreen 1 Font 18/SmallcapsGlow Map View 76x50 Tactical HUD 1 Map Filters NONE Filters NONE Steam 1 RUN: 7b646166-9fc1-4a7b-a4a5-dff01ae0a5fd